fUSD/lending_fUSD_20260429
["ID","MTS","AMOUNT","RATE_DAILY","PERIOD"]
[421316437,1777417840500,-316440.94984959,8.953e-05,2]
[421316438,1777417840512,-250.0,9.289e-05,2]
[421316439,1777417840522,-150.0,9.302e-05,2]
[421316440,1777417840533,-150.0,9.302e-05,2]
[421316441,1777417840544,-150.0,9.302e-05,2]
[421316442,1777417840554,-150.0,9.302e-05,2]
[421316443,1777417840564,-150.0,9.302e-05,2]
[421316444,1777417840575,-150.0,9.302e-05,2]
[421316445,1777417840585,-212.56047491,9.302e-05,2]
[421316446,1777417840595,-150.0,9.302e-05,2]
[421316447,1777417840606,-150.0,9.302e-05,2]
[421316448,1777417840616,-150.0,9.302e-05,2]
[421316449,1777417840626,-150.69588499,9.302e-05,2]
[421316450,1777417840636,-185.71653242,9.942e-05,2]
[421316451,1777417840646,-5000.0,9.942e-05,2]
[421316452,1777417840656,-500.0,9.942e-05,2]
[421316453,1777417840666,-250.0,9.942e-05,2]
[421316454,1777417840677,-250.0,9.942e-05,2]
[421316455,1777417840687,-610.0,9.942e-05,2]
[421316456,1777417840697,-420.0,9.942e-05,2]
[421316457,1777417840707,-300.0,9.942e-05,2]
[421316458,1777417840717,-300.0,9.942e-05,2]
[421316459,1777417840727,-1200.0,9.942e-05,2]
[421316460,1777417840738,-300.0,9.943e-05,2]
[421316461,1777417840748,-255.0,0.00010159,2]
[421316462,1777417840759,-500.0,0.00010425,2]
[421316464,1777417840769,-200.17425661,0.00010425,2]
[421316465,1777417840779,-1428.38747117,0.00010513,2]
[421316466,1777417840789,-495.0,0.0001075,5]
[421316467,1777417840799,-390.0,0.0001075,5]
[421316468,1777417840810,-150.0,0.000108,2]
[421316470,1777417840826,-169.2913192,0.000108,2]
[421316471,1777417840838,-150.0,0.000108,2]
[421316472,1777417840850,-189.53974354,0.000108,2]
[421316473,1777417840860,-150.0,0.000108,2]
[421316474,1777417840872,-150.0,0.000108,2]
[421316475,1777417840884,-150.0,0.000108,2]
[421316476,1777417840895,-150.0,0.000108,2]
[421316477,1777417840906,-587.0,0.00010936,2]
[421316478,1777417840919,-386.0,0.00010959,2]
[421316479,1777417840929,-150.0,0.00010971,2]
[421316480,1777417840940,-1481.23780761,0.00011061,2]
[421316481,1777417840950,-279.0,0.00011123,2]
[421316482,1777417840961,-150.0,0.00011143,2]
[421316483,1777417840971,-150.0,0.00011314,2]
[421316484,1777417840981,-884.0,0.000114,2]
[421316485,1777417840991,-307.0,0.000114,2]
[421316486,1777417841001,-150.0,0.00011486,2]
[421316488,1777417841011,-1536.04360649,0.00011609,2]
[421316490,1777417841021,-150.0,0.00011657,2]
[421316492,1777417841031,-613.78369724,0.0001176,2]
[421316493,1777417841042,-150.0,0.00011829,2]
[421316494,1777417841053,-1701.41236085,0.000119,3]
[421316495,1777417841064,-1699.78461416,0.000119,2]
[421316496,1777417841074,-500.0,0.00011973,2]
[421316497,1777417841085,-152.0,0.00011998,7]
[421316498,1777417841095,-300.0,0.00011999,2]
[421316499,1777417841104,-666.0,0.00011999,2]
[421316500,1777417841114,-155.0,0.00011999,2]
[421316501,1777417841124,-325.17752524,0.00011999,2]
[421316502,1777417841135,-500.0,0.00011999,2]
[421316503,1777417841145,-347.73794687,0.00011999,2]
[421316504,1777417841155,-500.0,0.00011999,2]
[421316505,1777417841165,-547.3461084,0.00011999,2]
[421316506,1777417841176,-500.0,0.00011999,2]
[421316507,1777417841187,-500.0,0.00011999,2]
[421316508,1777417841198,-558.24934758,0.00011999,2]
[421316509,1777417841215,-175589.9167946,0.00012,2]
[421316510,1777417841231,-401.64210511,0.00012,2]
[421316511,1777417841245,-10874.03214022,0.00012,2]
[421316512,1777417841257,-17281.12410002,0.00012,2]
[421316513,1777417841270,-8994.11514348,0.00012,2]
[421316514,1777417841284,-705.60285014,0.00012,2]
[421316515,1777417841302,-276.99747719,0.00012,2]
[421316516,1777417841315,-1407.38003316,0.00012,2]
[421316517,1777417841328,-3984.22621312,0.00012,2]
[421316518,1777417841354,-671.19091227,0.00012,2]
[421316519,1777417841367,-1528.70657414,0.00012,2]
[421316522,1777417843396,-21598.40886058,0.00012,2]
[421316523,1777417843409,-4940.67,0.00012,2]
[421316526,1777417846174,-250.44,0.0001176,2]
[421316527,1777417846229,-772.53282873,0.0001176,2]
[421316528,1777417846239,-4846.38467263,0.00012,2]
[421316529,1777417846252,-18799.28192885,0.00012,2]
[421316530,1777417846284,-466.05419099,0.00012,2]
[421316533,1777418418638,-500.0,9.289e-05,2]
[421316534,1777418420696,-500.0,9.289e-05,2]
[421316535,1777418424228,-200.0,9.289e-05,2]
[421316536,1777418424253,-200.0,9.289e-05,2]
[421316537,1777418424282,-100.0,9.29e-05,2]
[421316538,1777418425860,-500.0,9.29e-05,2]
[421316539,1777418427760,-400.0,9.29e-05,2]
[421316540,1777418427790,-100.0,9.29e-05,2]
[421316548,1777419032320,-300.0,9.289e-05,2]
[421316549,1777419032330,-1200.0,9.289e-05,2]
[421316550,1777419032341,-300.0,9.289e-05,2]
[421316551,1777419032351,-250.0,9.29e-05,2]
[421316552,1777419032361,-900.0,9.29e-05,2]
[421316553,1777419032371,-1000.0,9.29e-05,2]
[421316554,1777419032381,-1000.0,9.29e-05,2]
[421316555,1777419032391,-411.16495616,9.29e-05,2]
[421316556,1777419032403,-588.83504384,9.29e-05,2]
[421316557,1777419032412,-1000.0,9.29e-05,2]
[421316558,1777419032422,-1000.0,9.29e-05,2]
[421316559,1777419032431,-263.42420167,9.29e-05,2]
[421316560,1777419032441,-270.0,9.29e-05,2]
[421316561,1777419032450,-250.0,9.756e-05,2]
[421316562,1777419032460,-1014.0,0.0001,2]
[421316563,1777419032470,-150.0,0.00010099,2]
[421316564,1777419032480,-5529.0,0.000101,3]
[421316565,1777419032489,-3160.1760204,0.000102,5]
[421316566,1777419032501,-1466.46,0.000102,5]
[421316567,1777419032513,-902.3639796,0.000102,5]
[421316568,1777419032523,-250.0,0.00010218,2]
[421316569,1777419032532,-420.0,0.00010218,2]
[421316570,1777419032547,-1631.0,0.00010218,2]
[421316571,1777419032556,-150.0,0.000108,2]
[421316592,1777419032911,-150.0,0.000108,2]
[421316593,1777419032922,-150.0,0.000108,2]
[421316594,1777419032932,-150.0,0.000108,2]
[421316595,1777419032943,-150.0,0.000108,2]
[421316596,1777419032952,-150.0,0.000108,2]
[421316597,1777419032962,-150.0,0.000108,2]
[421316598,1777419032972,-150.0,0.000108,2]
[421316599,1777419032981,-150.0,0.000108,2]
[421316600,1777419032991,-174.61919141,0.00010855,2]
[421316601,1777419033000,-150.0,0.00010871,2]
[421316602,1777419033010,-150.0,0.00010941,2]
[421316603,1777419033020,-500.0,0.00010958,2]
[421316604,1777419033029,-500.0,0.00010958,3]
[421316605,1777419033039,-500.0,0.00010958,4]
[421316606,1777419033048,-500.0,0.00010958,5]
[421316607,1777419033057,-500.0,0.00010958,6]
[421316608,1777419033066,-1136.0,0.00010959,2]
[421316609,1777419033075,-150.0,0.00010971,2]
[421316610,1777419033084,-150.0,0.00011,2]
[421316611,1777419033094,-150.0,0.00011012,2]
[421316612,1777419033103,-150.0,0.00011082,2]
[421316613,1777419033113,-150.0,0.000111,2]
[421316614,1777419033122,-150.0,0.000111,2]
[421316615,1777419033132,-255.0,0.00011109,2]
[421316616,1777419033141,-150.0,0.00011143,2]
[421316617,1777419033150,-150.0,0.00011153,2]
[421316618,1777419033160,-150.0,0.000112,2]
[421316619,1777419033169,-150.0,0.00011224,2]
[421316620,1777419033179,-587.0,0.0001124,2]
[421316621,1777419033188,-150.0,0.00011294,2]
[421316622,1777419033198,-150.0,0.00011314,2]
[421316623,1777419033208,-150.0,0.00011365,2]
[421316624,1777419033217,-150.0,0.000114,2]
[421316625,1777419033226,-150.0,0.000114,2]
[421316626,1777419033236,-150.0,0.000114,2]
[421316627,1777419033246,-194.72792765,0.00011403,2]
[421316628,1777419033255,-150.0,0.00011435,2]
[421316629,1777419033265,-4037.172,0.00011466,2]
[421316630,1777419033275,-313.106,0.00011466,2]
[421316631,1777419033284,-150.0,0.00011486,2]
[421316632,1777419033294,-150.0,0.00011506,2]
[421316633,1777419033303,-500.0,0.00011534,2]
[421316634,1777419033313,-150.0,0.00011576,2]
[421316635,1777419033322,-150.0,0.000116,2]
[421316636,1777419033331,-156.5274994,0.000116,2]
[421316637,1777419033341,-150.0,0.00011647,2]
[421316638,1777419033349,-150.0,0.00011657,2]
[421316639,1777419033359,-33096.7482,0.000117,2]
[421316640,1777419033368,-1040.5925,0.000117,2]
[421316641,1777419033378,-150.0,0.000117,2]
[421316642,1777419033387,-150.0,0.000117,2]
[421316643,1777419033397,-307.0,0.000117,2]
[421316644,1777419033406,-2500.0,0.000117,2]
[421316645,1777419033415,-150.0,0.00011718,2]
[421316646,1777419033425,-221.0,0.00011726,2]
[421316647,1777419033434,-201.97,0.00011741,2]
[421316648,1777419033444,-6951.64053923,0.00011744,2]
[421316649,1777419033454,-681.98188582,0.0001176,2]
[421316650,1777419033464,-6951.6405392,0.00011766,2]
[421316651,1777419033474,-150.0,0.00011788,2]
[421316652,1777419033483,-6951.6405392,0.00011789,2]
[421316653,1777419033493,-200.0,0.00011793,2]
[421316654,1777419033503,-200.0,0.00011793,2]
[421316655,1777419033512,-1428.38747117,0.00011793,2]
[421316656,1777419033522,-279.9045709,0.00011793,2]
[421316657,1777419033531,-16974.69677729,0.00011799,2]
[421316658,1777419033541,-164048.4613,0.000118,2]
[421316659,1777419033551,-5000.0,0.000118,2]
[421316660,1777419033561,-150.0,0.000118,2]
[421316661,1777419033570,-16974.69677725,0.0001181,2]
[421316662,1777419033580,-6951.6405392,0.00011811,2]
[421316663,1777419033589,-16974.69677725,0.00011821,2]
[421316664,1777419033599,-150.0,0.00011829,2]
[421316665,1777419033608,-16974.69677725,0.00011833,2]
[421316666,1777419033618,-16974.69677725,0.00011844,2]
[421316667,1777419033627,-1633.43859737,0.00011855,2]
[421316668,1777419033640,-15341.25817988,0.00011855,2]
[421316669,1777419033649,-150.0,0.00011859,2]
[421316670,1777419033658,-16974.69677725,0.00011866,2]
[421316671,1777419033668,-500.0,0.00011873,2]
[421316672,1777419033677,-500.0,0.00011873,2]
[421316673,1777419033686,-470.71593278,0.00011873,2]
[421316674,1777419033696,-16974.69677725,0.00011878,2]
[421316675,1777419033706,-1816.62458594,0.0001188,2]
[421316676,1777419033718,-183.37541406,0.0001188,2]
[421316677,1777419033727,-2000.0,0.0001188,2]
[421316678,1777419033737,-16974.69677725,0.00011889,2]
[421316679,1777419033747,-1095.45000761,0.00011899,3]
[421316680,1777419033758,-587.52,0.00011899,2]
[421316681,1777419033771,-500.0,0.00011899,2]
[421316682,1777419033781,-538.0606614,0.00011899,3]
[421316683,1777419033792,-500.0,0.00011899,2]
[421316684,1777419033800,-500.0,0.00011899,2]
[421316685,1777419033811,-571.34890066,0.00011899,2]
[421316686,1777419033823,-320.79626288,0.00011899,2]
[421316687,1777419033833,-500.0,0.00011899,2]
[421316688,1777419033844,-293.84885998,0.00011899,2]
[421316689,1777419033853,-243.41656281,0.00011899,2]
[421316690,1777419033863,-409.0,0.000119,5]
[421316691,1777419033873,-250.0,0.000119,2]
[421316692,1777419033883,-203943.19780619,0.000119,2]
[421316693,1777419033899,-34511.6978549,0.000119,2]
[421316694,1777419033912,-1254.41808677,0.000119,2]
[421316695,1777419033926,-516.80872837,0.000119,2]
[421316696,1777419033940,-2295.0,0.000119,2]
[421316700,1777419038305,-454.65459055,0.0001176,2]
[421316702,1777419038315,-92.80198375,0.000118,2]
[421316705,1777419038416,-4907.19801625,0.000118,2]
[421316706,1777419038426,-500.0,0.00011899,2]
[421316707,1777419038435,-500.0,0.00011899,2]
[421316708,1777419038445,-500.0,0.00011899,2]
[421316709,1777419038454,-500.0,0.00011899,2]
[421316710,1777419038464,-500.0,0.00011899,2]
[421316711,1777419038474,-500.0,0.00011899,2]
[421316712,1777419038483,-500.0,0.00011899,2]
[421316713,1777419038494,-500.0,0.00011899,2]
[421316714,1777419038503,-500.0,0.00011899,2]
[421316715,1777419038513,-500.0,0.00011899,2]
[421316716,1777419038524,-500.0,0.00011899,2]
[421316717,1777419038533,-500.0,0.00011899,2]
[421316718,1777419038543,-500.0,0.00011899,2]
[421316719,1777419038553,-500.0,0.00011899,2]
[421316720,1777419038563,-500.0,0.00011899,2]
[421316721,1777419038574,-500.0,0.00011899,2]
[421316722,1777419038583,-500.0,0.00011899,2]
[421316723,1777419038593,-500.0,0.00011899,2]
[421316724,1777419038603,-500.0,0.00011899,2]
[421316725,1777419038612,-500.0,0.00011899,2]
[421316726,1777419038622,-500.0,0.00011899,2]
[421316727,1777419038632,-500.0,0.00011899,2]
[421316728,1777419038641,-500.0,0.00011899,2]
[421316729,1777419038651,-500.0,0.00011899,2]
[421316730,1777419038660,-500.0,0.00011899,2]
[421316731,1777419038670,-500.0,0.00011899,2]
[421316732,1777419038680,-500.0,0.00011899,2]
[421316733,1777419038689,-500.0,0.00011899,2]
[421316734,1777419038698,-500.0,0.00011899,2]
[421316735,1777419038708,-500.0,0.00011899,2]
[421316736,1777419038717,-500.0,0.00011899,2]
[421316737,1777419038727,-500.0,0.00011899,2]
[421316738,1777419038738,-500.0,0.00011899,2]
[421316739,1777419038748,-500.0,0.00011899,2]
[421316740,1777419038757,-500.0,0.00011899,2]
[421316741,1777419038767,-500.0,0.00011899,2]
[421316742,1777419038778,-500.0,0.00011899,2]
[421316743,1777419038789,-500.0,0.00011899,2]
[421316745,1777419038799,-500.0,0.00011899,2]
[421316746,1777419038809,-500.0,0.00011899,2]
[421316747,1777419038818,-500.0,0.00011899,2]
[421316748,1777419038828,-500.0,0.00011899,2]
[421316749,1777419038837,-500.0,0.00011899,2]
[421316750,1777419038846,-500.0,0.00011899,2]
[421316751,1777419038855,-500.0,0.00011899,2]
[421316752,1777419038865,-500.0,0.00011899,2]
[421316753,1777419038874,-500.0,0.00011899,2]
[421316754,1777419038884,-500.0,0.00011899,2]
[421316755,1777419038893,-500.0,0.00011899,2]
[421316756,1777419038903,-500.0,0.00011899,2]
[421316757,1777419038912,-500.0,0.00011899,2]
[421316758,1777419038923,-376957.37942377,0.000119,2]
[421316759,1777419038932,-2000.0,0.000119,2]
[421316760,1777419038943,-16974.69677725,0.000119,2]
[421316761,1777419038954,-156.5274994,0.000119,2]
[421316762,1777419038964,-465.477601,0.000119,2]
[421316763,1777419038974,-6785.98742206,0.000119,2]
[421316764,1777419038984,-214.35885658,0.000119,2]
[421316765,1777419038993,-1133.18974276,0.000119,2]
[421316766,1777419039003,-5636.97451873,0.000119,2]
[421316767,1777419039013,-200.0,0.00011903,2]
[421316768,1777419039022,-200.0,0.00011904,2]
[421316769,1777419039032,-200.0,0.00011904,2]
[421316770,1777419039041,-152.0,0.00011923,7]
[421316771,1777419039051,-150.0,0.00011929,2]
[421316772,1777419039060,-160425.2372051,0.00011968,2]
[421316773,1777419039070,-6187.3909041,0.0001198,2]
[421316774,1777419039080,-1785.3159645,0.0001198,2]
[421316775,1777419039090,-2000.0,0.00011988,2]
[421316776,1777419039099,-195.46,0.00011988,2]
[421316777,1777419039109,-161.0,0.0001199,2]
[421316778,1777419039118,-151.0,0.00011997,2]
[421316779,1777419039127,-300.0,0.00011999,2]
[421316780,1777419039138,-666.0,0.00011999,2]
[421316781,1777419039149,-500.0,0.00011999,7]
[421316782,1777419039160,-308.0,0.00012,5]
[421316783,1777419039169,-1204974.87089749,0.00012,2]
[421316784,1777419039491,-2528.48506424,0.00012,2]
[421316788,1777419040821,-303.10306037,0.0001176,2]
[421316789,1777419040832,-1590.09548663,0.00012,2]
[421316790,1777419040845,-338.004,0.00012,2]
[421316791,1777419040877,-28721.943405,0.00012,2]
[421316792,1777419041042,-305.11934148,0.00012,2]
[421316797,1777419043274,-151.55153019,0.0001176,2]
[421316798,1777419043285,-1020.74427233,0.00011833,2]
[421316799,1777419043328,-1265.91989,0.00011279,2]
[421316800,1777419043339,-397.08011,0.00011279,2]
[421316801,1777419043349,-1724.72918683,0.00011833,2]
[421316802,1777419043384,-372.27914492,0.00011833,2]
[421316803,1777419043654,-361.21820211,0.00011833,2]
[421316805,1777419046380,-41125.46414847,0.000116,2]
[421316807,1777419047095,-42595.67777219,0.000116,2]
[421316808,1777419047106,-2128.68306836,0.000116,2]
[421316809,1777419047117,-11546.86014265,0.000116,2]
[421316810,1777419047128,-1646.15832655,0.000116,2]
[421316811,1777419047140,-350.88499915,0.000116,2]
[421316816,1777419309941,150.0,0.00015287,30]
[421316817,1777419469883,150.0,0.00015316,30]
[421316818,1777419549115,150.0,0.00015336,30]
[421316819,1777419965072,1102.3,0.000166,120]
[421316824,1777420231394,-150.0,9.74e-05,2]
[421316825,1777420231404,-150.0,9.74e-05,2]
[421316826,1777420231414,-150.0,9.74e-05,2]
[421316827,1777420231424,-150.0,9.74e-05,2]
[421316828,1777420231433,-150.55191328,9.74e-05,2]
[421316829,1777420231443,-150.0,9.74e-05,2]
[421316830,1777420231468,-150.0,9.74e-05,2]
[421316831,1777420231479,-150.00000001,9.74e-05,2]
[421316832,1777420231489,-151.87862376,9.74e-05,2]
[421316833,1777420231499,-250.0,0.0001001,2]
[421316834,1777420231509,-150.0,0.00010281,2]
[421316835,1777420231520,-150.0,0.00010281,2]
[421316836,1777420231530,-150.0,0.00010281,2]
[421316837,1777420231541,-3229.738,0.00010624,2]
[421316838,1777420231552,-250.484,0.00010624,2]
[421316839,1777420231562,-193.0,0.00010643,2]
[421316840,1777420231573,-213.19692808,0.00010685,2]
[421316841,1777420231583,-170.56727749,0.000107,2]
[421316842,1777420231592,-204.48683447,0.000107,2]
[421316843,1777420231602,-215.88595745,0.000107,2]
[421316844,1777420231612,-211.80688168,0.000107,2]
[421316845,1777420231622,-250.0,0.00010714,2]
[421316846,1777420231632,-150.0,0.0001074,2]
[421316847,1777420231643,-2275.28362485,0.00010741,2]
[421316848,1777420231656,-355.00000001,0.00010741,2]
[421316850,1777420231668,-75202.80417514,0.00010741,2]
[421316851,1777420231679,-5000.0,0.00010741,2]
[421316852,1777420231688,-6717.18,0.00010741,2]
[421316853,1777420231698,-9999.99,0.00010741,2]
[421316854,1777420231709,-500.0,0.00010795,2]
[421316856,1777420231720,-150.0,0.00010822,2]
[421316858,1777420231730,-195.36173631,0.00010822,2]
[421316860,1777420231741,-200.21621424,0.00010822,2]
[421316862,1777420231752,-209.69729653,0.00010822,2]
[421316864,1777420231762,-528.14,0.0001084,2]
[421316866,1777420231772,-500.0,0.0001084,2]
[421316868,1777420231782,-599.94423046,0.0001084,2]
[421316870,1777420231791,-500.0,0.0001084,2]
[421316873,1777420231802,-500.0,0.0001084,2]
[421316875,1777420231812,-500.0,0.0001084,2]
[421316877,1777420231822,-500.0,0.0001084,2]
[421316879,1777420231832,-500.0,0.0001084,2]
[421316882,1777420231842,-500.0,0.0001084,2]
[421316884,1777420231858,-500.0,0.0001084,2]
[421316885,1777420231868,-452.7870408,0.0001084,2]
[421316886,1777420231878,-500.0,0.0001084,2]
[421316887,1777420231889,-500.0,0.0001084,2]
[421316888,1777420231899,-500.0,0.0001084,2]
[421316889,1777420231909,-500.0,0.0001084,2]
[421316890,1777420231919,-500.0,0.0001084,2]
[421316891,1777420231929,-500.0,0.0001084,2]
[421316892,1777420231939,-500.0,0.0001084,2]
[421316893,1777420231949,-500.0,0.0001084,2]
[421316894,1777420231959,-500.0,0.0001084,2]
[421316895,1777420231968,-500.0,0.0001084,2]
[421316896,1777420231979,-500.0,0.0001084,2]
[421316897,1777420231989,-500.0,0.0001084,2]
[421316898,1777420231999,-500.0,0.0001084,2]
[421316899,1777420232010,-500.0,0.0001084,2]
[421316900,1777420232021,-500.0,0.0001084,2]
[421316901,1777420232031,-500.0,0.0001084,2]
[421316902,1777420232042,-500.0,0.0001084,2]
[421316903,1777420232054,-500.0,0.0001084,2]
[421316904,1777420232065,-500.0,0.0001084,2]
[421316905,1777420232075,-500.0,0.0001084,2]
[421316906,1777420232085,-500.0,0.0001084,2]
[421316907,1777420232096,-500.0,0.0001084,2]
[421316908,1777420232107,-500.0,0.0001084,2]
[421316909,1777420232117,-500.0,0.0001084,2]
[421316910,1777420232127,-500.0,0.0001084,2]
[421316911,1777420232137,-500.0,0.0001084,2]
[421316912,1777420232147,-500.0,0.0001084,2]
[421316913,1777420232157,-500.0,0.0001084,2]
[421316914,1777420232168,-500.0,0.0001084,2]
[421316915,1777420232178,-500.0,0.0001084,2]
[421316916,1777420232189,-500.0,0.0001084,2]
[421316917,1777420232199,-500.0,0.0001084,2]
[421316918,1777420232212,-224.55738402,0.0001084,2]
[421316919,1777420232222,-500.0,0.0001084,2]
[421316920,1777420232238,-500.0,0.0001084,2]
[421316921,1777420232249,-500.0,0.0001084,2]
[421316922,1777420232260,-500.0,0.0001084,2]
[421316923,1777420232270,-500.0,0.0001084,2]
[421316924,1777420232280,-200.0,0.0001084,2]
[421316925,1777420232291,-555.69420199,0.0001084,2]
[421316926,1777420232301,-170.39159397,0.0001084,2]
[421316927,1777420232311,-250.0,0.0001084,2]
[421316928,1777420232321,-500.0,0.00010873,2]
[421316929,1777420232331,-235.43,0.000109,2]
[421316930,1777420232341,-3040.94891887,0.000109,2]
[421316931,1777420232351,-3040.94891882,0.00010934,2]
[421316932,1777420232361,-3040.94891882,0.00011095,2]
[421316933,1777420232372,-528.14,0.00011114,2]
[421316934,1777420232382,-803.72,0.0001124,2]
[421316935,1777420232393,-3040.94891882,0.00011256,2]
[421316936,1777420232402,-500.0,0.00011273,2]
[421316937,1777420232412,-1350.716,0.00011279,2]
[421316938,1777420232422,-623.0,0.00011279,2]
[421316939,1777420232432,-1049.0,0.00011279,2]
[421316940,1777420232442,-3532.0,0.00011279,2]
[421316941,1777420232452,-150.487,0.00011279,2]
[421316942,1777420232462,-1272.852,0.00011279,2]
[421316943,1777420232472,-1225.05,0.00011279,2]
[421316944,1777420232483,-927.0,0.00011279,2]
[421316945,1777420232493,-1663.0,0.00011279,2]
[421316946,1777420232503,-6035.0,0.00011279,2]
[421316947,1777420232513,-150.99,0.00011281,2]
[421316948,1777420232523,-18579.86,0.00011281,2]
[421316949,1777420232533,-724.98,0.00011281,2]
[421316950,1777420232543,-6631.55,0.00011281,2]
[421316951,1777420232553,-24999.99,0.00011281,2]
[421316952,1777420232563,-299.99,0.00011281,2]
[421316953,1777420232573,-500.0,0.00011373,2]
[421316954,1777420232583,-500.0,0.00011373,2]
[421316955,1777420232593,-500.0,0.00011373,2]
[421316956,1777420232603,-500.0,0.00011373,2]
[421316957,1777420232613,-528.14,0.00011388,2]
[421316958,1777420232623,-200.0,0.00011399,2]
[421316959,1777420232639,-1428.38747117,0.00011399,2]
[421316960,1777420232649,-151.0,0.00011399,2]
[421316961,1777420232660,-279.9045709,0.00011399,2]
[421316962,1777420232671,-174.61919142,0.00011399,2]
[421316963,1777420232681,-262030.84382621,0.000114,2]
[421316964,1777420232691,-3040.94891882,0.00011417,2]
[421316965,1777420232700,-151.0,0.00011454,2]
[421316966,1777420232711,-151.0,0.00011509,2]
[421316967,1777420232720,-3040.94891882,0.00011578,2]
[421316968,1777420232731,-199.99999901,0.000116,2]
[421316969,1777420232741,-466.0,0.000116,3]
[421316970,1777420232751,-160.0,0.000116,3]
[421316971,1777420232761,-528.14,0.00011662,2]
[421316972,1777420232772,-2000.0,0.00011686,2]
[421316973,1777420232782,-3040.94891882,0.00011739,2]
[421316974,1777420232792,-151.55153018,0.0001176,2]
[421316975,1777420232802,-255.0,0.00011771,2]
[421316976,1777420232812,-2000.0,0.0001188,2]
[421316977,1777420232822,-2000.0,0.0001188,2]
[421316978,1777420232833,-2000.0,0.0001189,2]
[421316979,1777420232843,-421.04317784,0.000119,2]
[421316980,1777420232854,-606.68518941,0.000119,2]
[421316981,1777420232865,-324.16634201,0.000119,2]
[421316982,1777420232875,-663.72265291,0.000119,2]
[421316983,1777420232885,-677.11747161,0.000119,2]
[421316984,1777420232895,-470.66374249,0.000119,2]
[421316985,1777420232904,-3040.94891882,0.000119,2]
[421316986,1777420232915,-331.0,0.000119,5]
[421316987,1777420232925,-263.0,0.000119,5]
[421316988,1777420232937,-2000.0,0.0001191,2]
[421316989,1777420232948,-265.66247706,0.00011921,2]
[421316990,1777420232959,-152.0,0.00011928,7]
[421316991,1777420232970,-152.0,0.00011928,7]
[421316992,1777420232982,-152.0,0.00011928,7]
[421316993,1777420232994,-528.17,0.00011936,2]
[421316994,1777420233004,-1393.57741839,0.00011947,2]
[421316995,1777420233020,-287.24218855,0.00011947,2]
[421316996,1777420233030,-1688.6455773,0.00011954,2]
[421316997,1777420233040,-152.0,0.00011969,7]
[421316998,1777420233050,-152.0,0.00011969,7]
[421316999,1777420233061,-151.0,0.00011997,2]
[421317000,1777420233071,-251.62431196,0.00011999,2]
[421317001,1777420233081,-1005.49075061,0.00011999,2]
[421317002,1777420233091,-290529.05537351,0.00012,2]
[421317003,1777420233106,-965.61194919,0.00012,2]
[421317004,1777420233144,-3234.92036339,0.00010641,2]
[421317006,1777420237495,-41627.80494876,0.00010641,2]
[421317007,1777420237548,-646.50864285,0.00010641,2]
[421317008,1777420237562,-106149.314545,0.00010641,2]
[421317009,1777420237573,-151.55153018,0.0001176,2]
[421317010,1777420237583,-755.45982852,0.000119,2]
[421317011,1777420237593,-80011.33970331,0.00012,2]
[421317012,1777420237606,-6936.65,0.00012,2]
[421317013,1777420237710,-1343.82,0.00012,2]
[421317014,1777420237723,-202007.57501693,0.00012,2]
[421317015,1777420237765,-105585.4787745,0.00012,2]
[421317042,1777420242722,-151.55153018,0.0001176,2]